fUSD/lending_fUSD_20250522
["ID","MTS","AMOUNT","RATE_DAILY","PERIOD"]
[361896730,1747876245981,-781.94942294,0.0002806,4]
[361896732,1747876245991,-781.94942293,0.0002806,4]
[361896734,1747876246000,-624.81,0.000281,7]
[361896736,1747876246011,-1076.0,0.00028253,5]
[361896738,1747876246021,-200.10565742,0.00028296,2]
[361896740,1747876246031,-905.7467813,0.00028337,2]
[361896742,1747876246040,-205.39189951,0.00028436,19]
[361896743,1747876246050,-162.8,0.00028767,2]
[361896745,1747876246060,-340.61,0.00028767,2]
[361896746,1747876246072,-150.0,0.00028767,2]
[361896748,1747876246082,-150.0,0.00028767,2]
[361896750,1747876246091,-175.26,0.00029,2]
[361896752,1747876246101,-1098.56,0.00029367,2]
[361896754,1747876246111,-205.39189951,0.00029471,21]
[361896756,1747876246121,-150.34,0.00029589,2]
[361896758,1747876246131,-150.34,0.00029589,2]
[361896760,1747876246140,-150.34,0.00029589,2]
[361896762,1747876246151,-162.8,0.00029589,2]
[361896764,1747876246162,-150.34,0.00029589,2]
[361896766,1747876246172,-150.34,0.00029589,2]
[361896768,1747876246181,-162.8,0.00029589,2]
[361896770,1747876246192,-170.1,0.00029589,2]
[361896772,1747876246202,-162.8,0.00029589,2]
[361896774,1747876246211,-150.34,0.00029589,2]
[361896775,1747876246222,-162.8,0.00029589,2]
[361896777,1747876246233,-162.8,0.00029589,2]
[361896779,1747876246242,-325.48,0.00029589,2]
[361896781,1747876246252,-162.8,0.00029589,2]
[361896783,1747876246261,-1076.0,0.00029666,5]
[361896785,1747876246271,-1204.40313457,0.00029739,2]
[361896787,1747876246280,-204.0,0.00029741,20]
[361896789,1747876246290,-1100.0,0.000299,10]
[361896791,1747876246299,-404.3980973,0.0003,2]
[361896793,1747876246309,-979.98814258,0.0003,4]
[361896795,1747876246318,-1000.0,0.0003,3]
[361896798,1747876246328,-19413.67939384,0.0003,5]
[361896800,1747876246338,-1031.15631,0.0003,2]
[361896802,1747876246348,-905.7467813,0.00030091,2]
[361896804,1747876246358,-500.0,0.00030137,2]
[361896806,1747876246368,-563.1048509,0.00030137,2]
[361896808,1747876246378,-799.0,0.00030263,2]
[361896810,1747876246387,-889.553,0.00030263,2]
[361896812,1747876246396,-554.0,0.00030263,2]
[361896814,1747876246406,-433.96,0.00030263,2]
[361896816,1747876246416,-154.0,0.00030263,2]
[361896818,1747876246425,-4047.0,0.00030263,2]
[361896820,1747876246435,-880.0,0.00030263,2]
[361896822,1747876246444,-200.10565742,0.00030375,15]
[361896824,1747876246454,-150.34,0.00030411,2]
[361896826,1747876246464,-150.34,0.00030411,2]
[361896828,1747876246474,-150.34,0.00030411,2]
[361896830,1747876246484,-205.39189951,0.00030507,23]
[361896832,1747876246494,-458.25,0.00031096,2]
[361896834,1747876246503,-458.25,0.00031096,2]
[361896836,1747876246514,-458.25,0.00031096,2]
[361896838,1747876246524,-776.0,0.00031149,2]
[361896840,1747876246534,-767.0,0.00031149,2]
[361896842,1747876246543,-500.0,0.00031149,2]
[361896844,1747876246555,-500.0,0.00031149,2]
[361896846,1747876246565,-696.32991924,0.00031149,5]
[361896848,1747876246575,-182.34,0.00031426,12]
[361896850,1747876246584,-1490.88,0.00031426,10]
[361896852,1747876246594,-150.99,0.00031426,2]
[361896854,1747876246603,-1158.63,0.00031426,2]
[361896856,1747876246613,-999.99,0.00031426,2]
[361896858,1747876246625,-150.99,0.00031426,2]
[361896860,1747876246635,-7932.72,0.00031426,2]
[361896862,1747876246644,-1781.83,0.00031426,2]
[361896864,1747876246653,-205.39189951,0.00031543,25]
[361896866,1747876246663,-1098.56,0.00031631,2]
[361896867,1747876246674,-204.0,0.00031758,23]
[361896869,1747876246684,-905.7467813,0.00031844,2]
[361896871,1747876246694,-15000.0,0.00032,14]
[361896873,1747876246703,-458.25,0.00032055,2]
[361896875,1747876246714,-805.46,0.00032055,2]
[361896877,1747876246724,-458.25,0.00032055,2]
[361896879,1747876246734,-389.07,0.00032055,2]
[361896881,1747876246743,-805.46,0.00032055,2]
[361896883,1747876246753,-805.46,0.00032055,2]
[361896885,1747876246763,-805.46,0.00032055,2]
[361896887,1747876246773,-805.46,0.00032055,2]
[361896889,1747876246783,-805.46,0.00032055,2]
[361896891,1747876246792,-805.46,0.00032055,2]
[361896893,1747876246802,-805.46,0.00032055,2]
[361896895,1747876246812,-968.95,0.00032055,2]
[361896896,1747876246822,-200.10565742,0.00032454,15]
[361896898,1747876246833,-1698.132,0.000325,120]
[361896900,1747876246842,-1698.133,0.000325,120]
[361896902,1747876246852,-1698.132,0.000325,120]
[361896904,1747876246862,-1698.133,0.000325,120]
[361896906,1747876246872,-1698.132,0.000325,120]
[361896908,1747876246882,-205.39189951,0.00032579,27]
[361896910,1747876246892,-1500.0,0.000328,11]
[361896912,1747876246902,-1197.69510206,0.00032875,2]
[361896914,1747876246911,-420.0,0.00032876,14]
[361896916,1747876246922,-151.0,0.00032876,7]
[361896917,1747876246932,-172.654604,0.00032876,7]
[361896918,1747876246941,-168.575194,0.00032876,14]
[361896919,1747876246951,-420.0,0.00032876,14]
[361896920,1747876246961,-420.0,0.00032876,14]
[361896921,1747876246971,-349.47898206,0.00032876,14]
[361896922,1747876246981,-420.0,0.00032876,14]
[361896923,1747876246991,-420.0,0.00032876,14]
[361896924,1747876247000,-458.47753072,0.00032876,14]
[361896925,1747876247010,-420.0,0.00032876,14]
[361896926,1747876247023,-420.0,0.00032876,14]
[361896927,1747876247033,-420.0,0.00032876,14]
[361896928,1747876247043,-420.0,0.00032876,14]
[361896929,1747876247054,-420.0,0.00032876,14]
[361896931,1747876247064,-473.82863857,0.00032876,14]
[361896933,1747876247078,-420.0,0.00032876,14]
[361896935,1747876247088,-420.0,0.00032876,14]
[361896937,1747876247097,-231.82570733,0.00032876,14]
[361896939,1747876247107,-420.0,0.00032876,14]
[361896941,1747876247118,-420.0,0.00032876,14]
[361896943,1747876247128,-420.0,0.00032876,14]
[361896945,1747876247137,-151.0,0.00032876,7]
[361896947,1747876247149,-352.1086783,0.00032876,14]
[361896949,1747876247161,-151.0,0.00032876,7]
[361896951,1747876247171,-281.07881833,0.00032876,14]
[361896953,1747876247181,-420.0,0.00032876,14]
[361896955,1747876247191,-420.0,0.00032876,14]
[361896957,1747876247201,-151.0,0.00032876,7]
[361896960,1747876247210,-151.0,0.00032876,7]
[361896962,1747876247221,-420.0,0.00032876,14]
[361896964,1747876247231,-420.0,0.00032876,5]
[361896965,1747876247241,-420.0,0.00032876,14]
[361896967,1747876247250,-195.16370923,0.00032876,14]
[361896969,1747876247261,-420.0,0.00032876,14]
[361896971,1747876247275,-1000.0,0.00032876,30]
[361896973,1747876247286,-420.0,0.00032876,14]
[361896975,1747876247297,-420.0,0.00032876,14]
[361896977,1747876247308,-223.89487434,0.00032876,14]
[361896979,1747876247318,-420.0,0.00032876,14]
[361896981,1747876247329,-420.0,0.00032876,14]
[361896983,1747876247339,-607.79,0.00032876,14]
[361896985,1747876247351,-420.0,0.00032876,14]
[361896988,1747876247361,-420.0,0.00032876,14]
[361896990,1747876247371,-420.0,0.00032876,14]
[361896992,1747876247380,-420.0,0.00032876,14]
[361896994,1747876247390,-1250.64,0.00032876,14]
[361896996,1747876247399,-420.0,0.00032876,14]
[361896998,1747876247410,-420.0,0.00032876,14]
[361896999,1747876247419,-420.0,0.00032876,14]
[361897001,1747876247429,-420.0,0.00032876,14]
[361897004,1747876247439,-292.5436103,0.00032876,14]
[361897006,1747876247450,-420.0,0.00032876,14]
[361897008,1747876247460,-420.0,0.00032876,14]
[361897010,1747876247470,-420.0,0.00032876,14]
[361897012,1747876247479,-420.0,0.00032876,14]
[361897014,1747876247489,-420.0,0.00032876,14]
[361897016,1747876247499,-151.0,0.00032876,7]
[361897018,1747876247508,-420.0,0.00032876,14]
[361897020,1747876247521,-420.0,0.00032876,14]
[361897022,1747876247531,-220.0,0.00032876,14]
[361897024,1747876247540,-270.767991,0.00032876,7]
[361897026,1747876247550,-396.98149213,0.00032876,14]
[361897028,1747876247560,-420.0,0.00032876,14]
[361897030,1747876247570,-420.0,0.00032876,14]
[361897032,1747876247580,-420.0,0.00032876,14]
[361897034,1747876247590,-151.0,0.00032876,7]
[361897036,1747876247600,-420.0,0.00032876,14]
[361897038,1747876247610,-420.0,0.00032876,14]
[361897040,1747876247620,-882.85,0.00032876,14]
[361897042,1747876247630,-420.0,0.00032876,14]
[361897044,1747876247639,-700.04,0.00032876,14]
[361897046,1747876247649,-964.48,0.00032876,14]
[361897048,1747876247659,-270.767991,0.00032876,7]
[361897049,1747876247670,-420.0,0.00032876,14]
[361897052,1747876247680,-425.77,0.00032876,14]
[361897054,1747876247690,-567.6,0.00032876,14]
[361897056,1747876247700,-726.57,0.00032876,14]
[361897058,1747876247710,-408.86602236,0.00032876,14]
[361897060,1747876247720,-420.0,0.00032876,3]
[361897062,1747876247729,-420.0,0.00032876,14]
[361897064,1747876247740,-603.69,0.00032876,14]
[361897066,1747876247749,-635.34,0.00032876,14]
[361897068,1747876247759,-151.0,0.00032876,7]
[361897070,1747876247770,-651.0,0.00032876,14]
[361897072,1747876247780,-420.0,0.00032876,14]
[361897074,1747876247790,-420.0,0.00032876,14]
[361897076,1747876247799,-1872.28,0.00032876,14]
[361897078,1747876247809,-867.0,0.00032876,14]
[361897080,1747876247819,-1193.96,0.00032876,14]
[361897082,1747876247828,-420.0,0.00032876,14]
[361897084,1747876247838,-1744.88,0.00032876,14]
[361897086,1747876247848,-1388.96,0.00032876,14]
[361897088,1747876247857,-420.0,0.00032876,14]
[361897090,1747876247867,-420.0,0.00032876,14]
[361897092,1747876247877,-420.0,0.00032876,14]
[361897094,1747876247887,-420.0,0.00032876,14]
[361897096,1747876247897,-420.0,0.00032876,14]
[361897098,1747876247907,-672.03,0.00032876,14]
[361897100,1747876247916,-420.0,0.00032876,14]
[361897102,1747876247926,-580.51,0.00032876,14]
[361897103,1747876247936,-502.71,0.00032876,14]
[361897105,1747876247946,-843.0,0.00032876,14]
[361897108,1747876247956,-420.0,0.00032876,14]
[361897109,1747876247965,-420.0,0.00032876,14]
[361897111,1747876247975,-629.38,0.00032876,14]
[361897113,1747876247985,-623.18,0.00032876,14]
[361897116,1747876247995,-568.19,0.00032876,14]
[361897118,1747876248005,-421.25,0.00032876,14]
[361897120,1747876248016,-420.0,0.00032876,14]
[361897122,1747876248027,-421.75,0.00032876,14]
[361897124,1747876248036,-1756.7,0.00032876,14]
[361897126,1747876248046,-420.0,0.00032876,14]
[361897155,1747876248349,-420.0,0.00032876,14]
[361897157,1747876248361,-420.0,0.00032876,14]
[361897159,1747876248371,-572.7,0.00032876,14]
[361897161,1747876248381,-420.0,0.00032876,14]
[361897163,1747876248390,-420.0,0.00032876,14]
[361897165,1747876248400,-420.0,0.00032876,14]
[361897167,1747876248410,-300.64855801,0.00032876,14]
[361897169,1747876248421,-420.0,0.00032876,14]
[361897171,1747876248431,-1032.13,0.00032876,14]
[361897173,1747876248441,-1054.14,0.00032876,14]
[361897175,1747876248451,-922.45,0.00032876,14]
[361897177,1747876248463,-420.0,0.00032876,14]
[361897179,1747876248475,-420.0,0.00032876,14]
[361897181,1747876248487,-420.0,0.00032876,14]
[361897183,1747876248499,-420.0,0.00032876,14]
[361897186,1747876248510,-1150.27,0.00032876,14]
[361897187,1747876248525,-641.52,0.00032876,14]
[361897190,1747876248536,-420.0,0.00032876,14]
[361897191,1747876248547,-420.0,0.00032876,14]
[361897193,1747876248558,-420.0,0.00032876,14]
[361897195,1747876248568,-151.0,0.00032876,7]
[361897197,1747876248579,-420.0,0.00032876,14]
[361897200,1747876248590,-420.0,0.00032876,14]
[361897202,1747876248600,-629.24,0.00032876,14]
[361897204,1747876248611,-961.71,0.00032876,14]
[361897205,1747876248620,-420.0,0.00032876,14]
[361897207,1747876248630,-420.0,0.00032876,14]
[361897210,1747876248641,-420.0,0.00032876,14]
[361897212,1747876248651,-151.0,0.00032876,7]
[361897214,1747876248661,-420.0,0.00032876,14]
[361897216,1747876248672,-420.0,0.00032876,14]
[361897217,1747876248682,-420.0,0.00032876,14]
[361897219,1747876248692,-420.0,0.00032876,14]
[361897221,1747876248703,-576.86,0.00032876,14]
[361897223,1747876248713,-420.0,0.00032876,14]
[361897224,1747876248723,-1163.33,0.00032876,14]
[361897225,1747876248735,-584.83,0.00032876,14]
[361897226,1747876248745,-420.03084108,0.00032876,14]
[361897227,1747876248756,-1591.82,0.00032876,14]
[361897228,1747876248769,-727.82,0.00032876,14]
[361897229,1747876248779,-420.0,0.00032876,14]
[361897230,1747876248789,-151.0,0.00032876,7]
[361897231,1747876248800,-420.0,0.00032876,14]
[361897232,1747876248811,-450.21,0.00032876,14]
[361897233,1747876248821,-428.43,0.00032876,14]
[361897234,1747876248832,-420.0,0.00032876,14]
[361897236,1747876248842,-420.0,0.00032876,14]
[361897238,1747876248852,-420.0,0.00032876,14]
[361897240,1747876248862,-705.19,0.00032876,14]
[361897242,1747876248872,-420.0,0.00032876,14]
[361897244,1747876248883,-311.4426844,0.00032876,14]
[361897246,1747876248892,-400.90069914,0.00032876,14]
[361897248,1747876248903,-738.41,0.00032876,14]
[361897250,1747876248913,-420.0,0.00032876,14]
[361897252,1747876248923,-420.0,0.00032876,14]
[361897254,1747876248935,-1145.74,0.00032876,14]
[361897256,1747876248946,-171.47758837,0.00032876,14]
[361897258,1747876248957,-510.21,0.00032876,14]
[361897260,1747876248968,-528.44,0.00032876,14]
[361897262,1747876248979,-420.0,0.00032876,14]
[361897264,1747876248990,-630.81,0.00032876,14]
[361897266,1747876249001,-420.0,0.00032876,14]
[361897268,1747876249016,-151.0,0.00032876,7]
[361897270,1747876249028,-853.05,0.00032876,14]
[361897272,1747876249038,-420.0,0.00032876,14]
[361897274,1747876249050,-420.0,0.00032876,14]
[361897276,1747876249060,-420.0,0.00032876,14]
[361897278,1747876249073,-470.38,0.00032876,14]
[361897280,1747876249083,-420.0,0.00032876,14]
[361897282,1747876249093,-698.15,0.00032876,14]
[361897284,1747876249103,-420.0,0.00032876,14]
[361897286,1747876249113,-420.0,0.00032876,14]
[361897288,1747876249124,-420.0,0.00032876,14]
[361897290,1747876249135,-420.0,0.00032876,14]
[361897292,1747876249147,-420.0,0.00032876,14]
[361897294,1747876249157,-479.46,0.00032876,14]
[361897296,1747876249167,-420.0,0.00032876,14]
[361897298,1747876249178,-420.0,0.00032876,14]
[361897300,1747876249188,-1027.83,0.00032876,14]
[361897302,1747876249199,-420.0,0.00032876,14]
[361897304,1747876249209,-420.0,0.00032876,14]
[361897306,1747876249220,-420.0,0.00032876,14]
[361897308,1747876249230,-420.0,0.00032876,14]
[361897310,1747876249241,-420.0,0.00032876,14]
[361897312,1747876249251,-457.68,0.00032876,14]
[361897314,1747876249261,-960.49,0.00032876,14]
[361897316,1747876249275,-420.0,0.00032876,14]
[361897319,1747876249286,-420.0,0.00032876,14]
[361897320,1747876249296,-420.0,0.00032876,14]
[361897322,1747876249307,-465.61,0.00032876,14]
[361897324,1747876249318,-459.77,0.00032876,14]
[361897327,1747876249329,-420.0,0.00032876,14]
[361897328,1747876249339,-494.33417664,0.00032876,14]
[361897331,1747876249350,-1124.28,0.00032876,14]
[361897333,1747876249360,-420.0,0.00032876,14]
[361897335,1747876249372,-420.0,0.00032876,14]
[361897337,1747876249383,-611.25,0.00032876,14]
[361897339,1747876249393,-420.0,0.00032876,14]
[361897341,1747876249403,-263.4969806,0.00032876,14]
[361897343,1747876249413,-420.0,0.00032876,14]
[361897345,1747876249422,-420.0,0.00032876,14]
[361897347,1747876249433,-420.0,0.00032876,14]
[361897349,1747876249443,-420.0,0.00032876,14]
[361897351,1747876249453,-420.0,0.00032876,14]
[361897353,1747876249463,-420.0,0.00032876,14]
[361897355,1747876249473,-420.0,0.00032876,14]
[361897357,1747876249483,-420.0,0.00032876,14]
[361897359,1747876249493,-420.0,0.00032876,14]
[361897361,1747876249503,-420.0,0.00032876,14]
[361897363,1747876249515,-420.0,0.00032876,14]
[361897365,1747876249525,-420.0,0.00032876,14]
[361897367,1747876249534,-544.28,0.00032876,14]
[361897368,1747876249545,-420.0,0.00032876,14]
[361897370,1747876249555,-420.0,0.00032876,14]
[361897373,1747876249565,-1341.37,0.00032876,14]
[361897374,1747876249575,-420.0,0.00032876,14]
[361897377,1747876249585,-453.91,0.00032876,14]
[361897379,1747876249595,-420.0,0.00032876,14]
[361897381,1747876249606,-657.81,0.00032876,14]
[361897383,1747876249615,-420.0,0.00032876,14]
[361897385,1747876249625,-1328.63,0.00032876,14]
[361897387,1747876249635,-710.06,0.00032876,14]
[361897389,1747876249645,-585.53,0.00032876,14]
[361897391,1747876249655,-420.0,0.00032876,7]
[361897393,1747876249665,-420.0,0.00032876,14]
[361897395,1747876249675,-420.0,0.00032876,14]
[361897397,1747876249684,-151.0,0.00032876,7]
[361897399,1747876249695,-420.0,0.00032876,14]
[361897401,1747876249705,-730.98,0.00032876,14]
[361897403,1747876249716,-178.96487296,0.00032876,14]
[361897405,1747876249727,-151.0,0.00032876,7]
[361897407,1747876249736,-548.89,0.00032876,14]
[361897409,1747876249748,-420.0,0.00032876,14]
[361897412,1747876249759,-1364.6,0.00032876,14]
[361897414,1747876249772,-420.0,0.00032876,14]
[361897416,1747876249781,-1182.2,0.00032876,14]
[361897418,1747876249791,-999.41,0.00032876,14]
[361897420,1747876249802,-420.0,0.00032876,14]
[361897422,1747876249812,-538.45,0.00032876,14]
[361897424,1747876249822,-420.55194588,0.00032876,14]
[361897426,1747876249832,-420.0,0.00032876,14]
[361897428,1747876249842,-151.0,0.00032876,7]
[361897430,1747876249851,-420.0,0.00032876,14]
[361897432,1747876249861,-529.89310876,0.00032876,14]
[361897434,1747876249871,-527.04,0.00032876,14]
[361897436,1747876249881,-420.0,0.00032876,14]
[361897438,1747876249890,-739.45,0.00032876,14]
[361897440,1747876249900,-420.0,0.00032876,14]
[361897442,1747876249909,-420.0,0.00032876,14]
[361897444,1747876249919,-420.0,0.00032876,14]
[361897446,1747876249929,-420.0,0.00032876,14]
[361897448,1747876249939,-525.9,0.00032876,14]
[361897450,1747876249948,-420.0,0.00032876,14]
[361897452,1747876249957,-209.656288,0.00032876,7]
[361897454,1747876249967,-581.94,0.00032876,14]
[361897456,1747876249977,-487.76,0.00032876,14]
[361897458,1747876249986,-420.0,0.00032876,14]
[361897460,1747876249996,-504.69,0.00032876,14]
[361897462,1747876250005,-420.0,0.00032876,14]
[361897464,1747876250016,-420.0,0.00032876,14]
[361897466,1747876250026,-420.0,0.00032876,14]
[361897468,1747876250035,-420.0,0.00032876,14]
[361897470,1747876250045,-420.0,0.00032876,14]
[361897472,1747876250055,-420.0,0.00032876,14]
[361897474,1747876250067,-420.0,0.00032876,14]
[361897476,1747876250084,-420.0,0.00032876,14]
[361897478,1747876250094,-420.0,0.00032876,14]
[361897481,1747876250104,-420.0,0.00032876,14]
[361897483,1747876250114,-423.27,0.00032876,14]
[361897484,1747876250124,-540.08,0.00032876,14]
[361897487,1747876250134,-780.06,0.00032876,14]
[361897489,1747876250145,-934.1,0.00032876,14]
[361897491,1747876250155,-420.0,0.00032876,14]
[361897493,1747876250164,-559.84,0.00032876,14]
[361897495,1747876250174,-420.0,0.00032876,14]
[361897497,1747876250184,-420.0,0.00032876,14]
[361897499,1747876250193,-1344.92,0.00032876,14]
[361897501,1747876250204,-420.0,0.00032876,14]
[361897503,1747876250213,-420.0,0.00032876,14]
[361897505,1747876250222,-1533.47,0.00032876,14]
[361897507,1747876250232,-653.52,0.00032876,14]
[361897509,1747876250241,-1027.31,0.00032876,14]
[361897511,1747876250250,-1791.64,0.00032876,14]
[361897513,1747876250260,-651.85,0.00032876,14]
[361897515,1747876250273,-2210.66,0.00032876,14]
[361897517,1747876250283,-420.0,0.00032876,14]
[361897519,1747876250294,-801.63,0.00032876,14]
[361897521,1747876250304,-420.0,0.00032876,14]
[361897523,1747876250315,-420.0,0.00032876,14]
[361897525,1747876250325,-450.01,0.00032876,14]
[361897527,1747876250335,-907.42,0.00032876,14]
[361897528,1747876250346,-500.0,0.00032876,14]
[361897529,1747876250356,-486.72,0.00032876,14]
[361897530,1747876250366,-420.0,0.00032876,14]
[361897531,1747876250376,-420.0,0.00032876,14]
[361897532,1747876250386,-690.75,0.00032876,14]
[361897533,1747876250397,-420.0,0.00032876,14]
[361897534,1747876250407,-420.0,0.00032876,14]
[361897535,1747876250416,-529.36,0.00032876,14]
[361897536,1747876250426,-420.0,0.00032876,14]
[361897538,1747876250437,-1125.95,0.00032876,14]
[361897540,1747876250447,-420.0,0.00032876,14]
[361897542,1747876250456,-420.0,0.00032876,14]
[361897544,1747876250467,-420.0,0.00032876,14]
[361897547,1747876250482,-151.0,0.00032876,7]
[361897549,1747876250492,-420.0,0.00032876,14]
[361897551,1747876250503,-420.0,0.00032876,14]
[361897553,1747876250514,-1816.44,0.00032876,14]
[361897555,1747876250524,-201.65,0.00032876,14]
[361897557,1747876250534,-420.0,0.00032876,14]
[361897559,1747876250544,-420.0,0.00032876,14]
[361897561,1747876250554,-420.0,0.00032876,14]
[361897563,1747876250565,-420.0,0.00032876,14]
[361897565,1747876250575,-529.66,0.00032876,14]
[361897567,1747876250585,-420.0,0.00032876,14]
[361897569,1747876250596,-420.0,0.00032876,14]
[361897571,1747876250610,-420.0,0.00032876,14]
[361897573,1747876250621,-1393.5,0.00032876,14]
[361897575,1747876250631,-496.03,0.00032876,14]
[361897577,1747876250640,-420.0,0.00032876,14]
[361897579,1747876250650,-871.98,0.00032876,14]
[361897581,1747876250660,-420.0,0.00032876,14]
[361897583,1747876250670,-1419.98,0.00032876,14]
[361897585,1747876250679,-1349.24,0.00032876,14]
[361897587,1747876250689,-1856.31,0.00032876,14]
[361897590,1747876250700,-830.45,0.00032876,14]
[361897592,1747876250710,-420.0,0.00032876,14]
[361897594,1747876250720,-420.0,0.00032876,14]
[361897596,1747876250729,-420.0,0.00032876,14]
[361897598,1747876250738,-420.0,0.00032876,14]
[361897600,1747876250748,-420.0,0.00032876,14]
[361897602,1747876250757,-420.0,0.00032876,14]
[361897604,1747876250768,-464.4,0.00032876,14]
[361897606,1747876250778,-420.0,0.00032876,14]
[361897608,1747876250787,-731.07,0.00032876,14]
[361897610,1747876250796,-1795.43,0.00032876,14]
[361897612,1747876250806,-420.0,0.00032876,14]
[361897614,1747876250816,-420.0,0.00032876,14]
[361897616,1747876250825,-420.0,0.00032876,14]
[361897618,1747876250834,-420.0,0.00032876,14]
[361897633,1747876250969,-420.0,0.00032876,14]
[361897635,1747876250979,-1599.86,0.00032876,14]
[361897637,1747876250988,-1225.16,0.00032876,14]
[361897639,1747876250998,-1003.49,0.00032876,14]
[361897641,1747876251007,-420.0,0.00032876,14]
[361897643,1747876251017,-827.34,0.00032876,14]
[361897645,1747876251026,-464.72,0.00032876,14]
[361897647,1747876251036,-420.0,0.00032876,14]
[361897649,1747876251045,-521.12,0.00032876,14]
[361897651,1747876251054,-486.15,0.00032876,14]
[361897653,1747876251064,-420.0,0.00032876,14]
[361897655,1747876251078,-420.0,0.00032876,14]
[361897657,1747876251087,-2643.23,0.00032876,14]
[361897659,1747876251097,-800.71,0.00032876,14]
[361897661,1747876251106,-163.72634433,0.00032876,14]
[361897663,1747876251121,-420.0,0.00032876,14]
[361897665,1747876251132,-420.0,0.00032876,14]
[361897667,1747876251142,-420.0,0.00032876,14]
[361897669,1747876251153,-441.28,0.00032876,14]
[361897671,1747876251163,-1365.87,0.00032876,14]
[361897673,1747876251172,-420.0,0.00032876,14]
[361897675,1747876251183,-681.64,0.00032876,14]
[361897677,1747876251192,-420.0,0.00032876,14]
[361897679,1747876251202,-420.0,0.00032876,14]
[361897681,1747876251212,-151.0,0.00032876,7]
[361897683,1747876251222,-420.0,0.00032876,14]
[361897685,1747876251232,-420.0,0.00032876,14]
[361897687,1747876251241,-151.0,0.00032876,7]
[361897689,1747876251251,-420.0,0.00032876,14]
[361897691,1747876251260,-1070.27,0.00032876,14]
[361897693,1747876251270,-584.64,0.00032876,14]
[361897696,1747876251279,-420.0,0.00032876,14]
[361897697,1747876251289,-420.0,0.00032876,14]
[361897699,1747876251298,-883.5,0.00032876,14]
[361897701,1747876251308,-604.14,0.00032876,14]
[361897703,1747876251318,-738.85,0.00032876,14]
[361897705,1747876251328,-151.0,0.00032876,7]
[361897707,1747876251338,-420.0,0.00032876,14]
[361897709,1747876251348,-1266.77,0.00032876,14]
[361897711,1747876251357,-420.0,0.00032876,14]
[361897713,1747876251367,-420.0,0.00032876,14]
[361897715,1747876251376,-161.534956,0.00032876,14]
[361897717,1747876251385,-420.0,0.00032876,14]
[361897719,1747876251395,-859.11,0.00032876,14]
[361897721,1747876251404,-946.79,0.00032876,14]
[361897723,1747876251414,-714.4,0.00032876,14]
[361897725,1747876251424,-568.99382545,0.00032876,14]
[361897727,1747876251433,-420.0,0.00032876,14]
[361897729,1747876251442,-817.39,0.00032876,7]
[361897731,1747876251452,-500.0,0.00032876,14]
[361897733,1747876251461,-420.0,0.00032876,14]
[361897735,1747876251471,-420.0,0.00032876,14]
[361897737,1747876251480,-487.02,0.00032876,14]